[Event "7th Summer Cup 2024"]
[Site "Rhodes"]
[Date "2024.06.28"]
[Round "7.1"]
[White "Kotronias, Vasilios"]
[Black "Nasuta, Grzegorz"]
[Result "1/2-1/2"]
[ECO "B94"]
[WhiteElo "2415"]
[BlackElo "2541"]
[Annotator "TA"]
[PlyCount "56"]
[EventDate "2024.06.21"]
[EventType "swiss"]
[EventCountry "GRE"]
[SourceTitle "playchess.com"]
[Source "ChessBase"]
[SourceQuality "1"]
[TimeControl "40/5400+30:900+30"]

{[%evp 11,56,32,25,7,34,6,51,27,25,26,72,93,101,113,91,97,87,86,127,96,108,103,112,103,100,107,100,47,60,56,52,53,60,14,8,-7,0,0,0,-22,0,0,0,0,0,0,0]} 1. e4 {[%emt 0:00:03]} c5 {[%emt 0:08:16]} 2. Nf3 {[%emt 0:00:08]} d6 {[%emt 0:00:04]} 3. d4 {[%emt 0:00:05]} cxd4 {[%emt 0:00:05]} 4. Nxd4 {[%emt 0:00:03]} Nf6 {[%emt 0:00:09]} 5. Nc3 {[%emt 0:00:04]} a6 {[%emt 0:00:07]} 6. Bg5 {[%emt 0:00:05]} Nbd7 {[%emt 0:00:07]} 7. Qe2 {[%emt 0:00:07]} Qa5 {[%emt 0:00:19]} 8. Bd2 {[%emt 0:02:22]} h5 {[%emt 0:00:17]} 9. O-O-O {[%emt 0:00:58] White is slightly better.} b5 {[%emt 0:01:23]} 10. Kb1 {[%emt 0:03:19] Nd5 would now be deadly.} b4 {[%emt 0:14:00] [#]} (10... Qc7 $11 {is more appropriate.}) 11. Nd5 $1 $16 {[%emt 0:03:18]} Nxd5 {[%emt 0:08:55]} 12. Nc6 $36 {[%emt 0:05:33][%mdl 2048] White is in control.} Qc5 {[%emt 0:06:12]} 13. exd5 {[%emt 0:00:09]} Qxd5 {[%emt 0:00:35]} 14. Nxb4 {[%emt 0:00:18] White is more active.} (14. Bxb4 $2 {loses.} Qxc6 15. Rxd6 Qc7 $19) 14... Qc5 {[%emt 0:03:24]} 15. Bc3 {[%emt 0:02:29]} Bb7 {[%emt 0:02:23] [#]} 16. h4 $1 {[%emt 0:02:48]} Rh6 {[%emt 0:25:48][%cal Bh8h6,Bh6e6,Be6e3][%mdl 32]} 17. Rh3 {[%emt 0:01:47]} Re6 {[%emt 0:03:05]} 18. Qd2 {[%emt 0:00:25]} Nf6 {[%emt 0:00:27] [#]} 19. f3 {[%emt 0:17:17] Prevents Ne4.} (19. Bd4 $1 $16 {[%cal Rd4c5]} Ne4 20. Qe1) 19... Qe3 {[%emt 0:15:12]} 20. Qxe3 {[%emt 0:02:25]} Rxe3 {[%emt 0:00:18]} 21. Bd4 {[%emt 0:00:14]} Re6 {[%emt 0:00:09]} 22. c4 {[%emt 0:02:41]} (22. Bc4 $14) 22... g6 $11 {[%emt 0:03:41] The position is equal.} 23. Bd3 {[%emt 0:02:04]} Bh6 {[%emt 0:02:00]} 24. Nc2 {[%emt 0:05:01]} Nd7 {[%emt 0:01:04]} 25. Bc3 {[%emt 0:01:20]} Rc8 {[%emt 0:03:38]} 26. Nd4 {[%emt 0:14:41]} Re3 {[%emt 0:00:01] Hoping for ...Ne5.} 27. Nc2 {[%emt 0:00:09]} Re6 {[%emt 0:00:03]} 28. Nd4 {[%emt 0:00:04]} Re3 {[%emt 0:00:16] Weighted Error Value: White=0.11 (very precise) /Black=0.11 (very precise) .  Mistake:       	White=2     	Black=1      Inaccurate:     	---       	Black=3      OK:         	White=12    	Black=10     Strong:       	White=1     	---} 1/2-1/2

[Event "7th Summer Cup 2024"]
[Site "Rhodes"]
[Date "2024.06.28"]
[Round "7.2"]
[White "Budisavljevic, Luka"]
[Black "Mostbauer, Florian"]
[Result "1/2-1/2"]
[ECO "A11"]
[WhiteElo "2468"]
[BlackElo "2324"]
[Annotator "RC"]
[PlyCount "114"]
[EventDate "2024.06.21"]
[EventType "swiss"]
[EventCountry "GRE"]
[SourceTitle "playchess.com"]
[Source "ChessBase"]
[SourceQuality "1"]
[TimeControl "40/5400+30:900+30"]

1. c4 {[%emt 0:00:32]} c6 {[%emt 0:00:07]} 2. Nf3 {[%emt 0:00:17]} d5 {[%emt 0:00:15]} 3. e3 {[%emt 0:00:10]} Nf6 {[%emt 0:00:10]} 4. Nc3 {[%emt 0:00:14]} Bg4 {[%emt 0:00:13]} 5. Qb3 {[%emt 0:00:40]} Qb6 {[%emt 0:00:16]} 6. Ne5 {[%emt 0:08:15]} Be6 {[%emt 0:00:11]} 7. d4 {[%emt 0:00:35]} Nbd7 {[%emt 0:00:26]} 8. Nxd7 {[%emt 0:01:34]} Bxd7 {[%emt 0:00:28]} 9. Bd2 {[%emt 0:01:56]} e6 {[%emt 0:11:07]} 10. h3 {[%emt 0:00:59]} Qxb3 {[%emt 0:09:49]} 11. axb3 {[%emt 0:00:02]} Bd6 {[%emt 0:00:37]} 12. Bd3 {[%emt 0:05:15]} O-O {[%emt 0:08:47]} 13. g4 {[%emt 0:00:29]} e5 {[%emt 0:13:49]} 14. g5 {[%emt 0:08:34]} exd4 {[%emt 0:01:42]} 15. gxf6 {[%emt 0:03:33]} dxc3 {[%emt 0:00:12]} 16. Bxc3 {[%emt 0:00:46]} Rfe8 {[%emt 0:03:30]} 17. cxd5 {[%emt 0:02:45]} cxd5 {[%emt 0:01:32]} 18. fxg7 {[%emt 0:00:37]} Be5 {[%emt 0:03:16]} 19. Kd2 {[%emt 0:01:40]} Kxg7 {[%emt 0:03:11]} 20. Rhg1+ {[%emt 0:00:03]} Kf6 {[%emt 0:06:11]} 21. Rg3 {[%emt 0:00:13]} Bxc3+ {[%emt 0:00:13]} 22. Kxc3 {[%emt 0:03:41]} Be6 {[%emt 0:02:55]} 23. Ra4 {[%emt 0:06:50]} Rec8+ {[%emt 0:14:24]} 24. Kd2 {[%emt 0:00:32]} h6 {[%emt 0:00:19]} 25. Rf4+ {[%emt 0:00:50]} Ke5 {[%emt 0:04:12]} 26. Rh4 {[%emt 0:00:41]} Rh8 {[%emt 0:00:11]} 27. Rh5+ {[%emt 0:01:25]} Kf6 {[%emt 0:00:42]} 28. Rf3+ {[%emt 0:01:53]} Kg7 {[%emt 0:00:24]} 29. Rf4 {[%emt 0:10:26]} Rac8 {[%emt 0:00:32]} 30. Ra4 {[%emt 0:01:12]} a6 {[%emt 0:00:29]} 31. f4 {[%emt 0:00:30]} Kf6 {[%emt 0:02:51]} 32. f5 {[%emt 0:07:43]} Bd7 {[%emt 0:00:36]} 33. Rah4 {[%emt 0:01:33]} Kg7 {[%emt 0:03:07]} 34. Rd4 {[%emt 0:00:19]} Bc6 {[%emt 0:00:56]} 35. Be2 {[%emt 0:00:14]} Kf6 {[%emt 0:01:22]} 36. Rdh4 {[%emt 0:07:47]} Rcg8 {[%emt 0:01:48]} 37. Rxh6+ {[%emt 0:09:03]} Rxh6 {[%emt 0:00:08]} 38. Rxh6+ {[%emt 0:00:02]} Kxf5 {[%emt 0:00:26]} 39. Bg4+ {[%emt 0:00:50]} Kg5 {[%emt 0:05:06]} 40. Rh5+ {[%emt 0:00:00]} Kg6 {[%emt 0:00:00]} 41. Re5 {[%emt 0:01:39]} Kf6 {[%emt 0:03:00]} 42. Rf5+ {[%emt 0:00:41]} Ke7 {[%emt 0:00:38]} 43. Rf4 {[%emt 0:01:11]} Rg7 {[%emt 0:01:56]} 44. h4 {[%emt 0:00:31]} Bd7 {[%emt 0:02:40]} 45. Bf3 {[%emt 0:00:16]} Be6 {[%emt 0:02:11]} 46. h5 {[%emt 0:03:57]} f5 {[%emt 0:02:28]} 47. Rh4 {[%emt 0:00:51]} Kf6 {[%emt 0:00:18]} 48. Rh2 {[%emt 0:03:19]} Bf7 {[%emt 0:01:37]} 49. b4 {[%emt 0:01:48]} Rh7 {[%emt 0:00:44]} 50. Rh1 {[%emt 0:03:23]} Ke5 {[%emt 0:00:24]} 51. Rh4 {[%emt 0:00:13]} Be8 {[%emt 0:00:48]} 52. Be2 {[%emt 0:01:34]} Kf6 {[%emt 0:00:40]} 53. Kc3 {[%emt 0:01:42]} Ke5 {[%emt 0:01:56]} 54. Bf3 {[%emt 0:03:11]} Rh6 {[%emt 0:01:11]} 55. Rh1 {[%emt 0:01:40]} Bf7 {[%emt 0:01:01]} 56. Kd3 {[%emt 0:01:21]} Rh7 {[%emt 0:00:20]} 57. Rh4 {[%emt 0:00:33]} Be8 {[%emt 0:05:38]} 1/2-1/2

[Event "7th Summer Cup 2024"]
[Site "Rhodes"]
[Date "2024.06.28"]
[Round "7.3"]
[White "Stefanova, Antoaneta"]
[Black "Sandalakis, Nikolaos"]
[Result "1-0"]
[ECO "D23"]
[WhiteElo "2417"]
[BlackElo "2229"]
[Annotator "RC"]
[PlyCount "89"]
[EventDate "2024.06.21"]
[EventType "swiss"]
[EventCountry "GRE"]
[SourceTitle "playchess.com"]
[Source "ChessBase"]
[SourceQuality "1"]
[TimeControl "40/5400+30:900+30"]

1. d4 {[%emt 0:06:56]} d5 {[%emt 0:00:14]} 2. c4 {[%emt 0:00:19]} c6 {[%emt 0:00:23]} 3. Nf3 {[%emt 0:00:08]} Nf6 {[%emt 0:00:13]} 4. Qb3 {[%emt 0:00:06]} dxc4 {[%emt 0:01:45]} 5. Qxc4 {[%emt 0:00:05]} Bf5 {[%emt 0:00:16]} 6. g3 {[%emt 0:03:43]} e6 {[%emt 0:01:14]} 7. Bg2 {[%emt 0:00:06]} Be7 {[%emt 0:00:10]} 8. O-O {[%emt 0:01:10]} O-O {[%emt 0:00:22]} 9. Qb3 {[%emt 0:03:19]} Qb6 {[%emt 0:04:07]} 10. Nbd2 {[%emt 0:00:05]} Nbd7 {[%emt 0:08:22]} 11. Nc4 {[%emt 0:00:06]} Qxb3 {[%emt 0:13:01]} 12. axb3 {[%emt 0:00:08]} Be4 {[%emt 0:08:13]} 13. Bf4 {[%emt 0:01:33]} Nd5 {[%emt 0:12:52]} 14. Bd6 {[%emt 0:04:45]} Bxd6 {[%emt 0:02:04]} 15. Nxd6 {[%emt 0:00:06]} Bxf3 {[%emt 0:00:04]} 16. Bxf3 {[%emt 0:00:04]} Rfb8 {[%emt 0:09:41]} 17. Ra5 {[%emt 0:05:27]} Kf8 {[%emt 0:06:41]} 18. e4 {[%emt 0:01:18]} Ke7 {[%emt 0:04:54]} 19. Nf5+ {[%emt 0:09:02]} exf5 {[%emt 0:00:05]} 20. exd5 {[%emt 0:00:06]} cxd5 {[%emt 0:05:05]} 21. Rxd5 {[%emt 0:05:49]} Nf6 {[%emt 0:04:30]} 22. Rxf5 {[%emt 0:03:35]} Rd8 {[%emt 0:00:14]} 23. Rb5 {[%emt 0:03:50]} Rab8 {[%emt 0:06:57]} 24. Ra1 {[%emt 0:03:43]} Rxd4 {[%emt 0:04:15]} 25. Rxa7 {[%emt 0:01:42]} Rd2 {[%emt 0:03:02]} 26. Rbxb7+ {[%emt 0:05:48]} Rxb7 {[%emt 0:00:06]} 27. Rxb7+ {[%emt 0:00:10]} Kf8 {[%emt 0:01:07]} 28. b4 {[%emt 0:11:32]} Rxb2 {[%emt 0:00:55]} 29. h3 {[%emt 0:11:35]} h5 {[%emt 0:01:03]} 30. b5 {[%emt 0:06:43]} g5 {[%emt 0:02:37]} 31. b6 {[%emt 0:07:59]} g4 {[%emt 0:00:29]} 32. hxg4 {[%emt 0:00:29]} hxg4 {[%emt 0:00:25]} 33. Bc6 {[%emt 0:00:30]} Rb1+ {[%emt 0:01:01]} 34. Kg2 {[%emt 0:00:14]} Rb2 {[%emt 0:00:16]} 35. Kf1 {[%emt 0:01:31]} Rb1+ {[%emt 0:00:45]} 36. Ke2 {[%emt 0:00:10]} Rb2+ {[%emt 0:00:06]} 37. Ke3 {[%emt 0:00:40]} Rb3+ {[%emt 0:00:40]} 38. Kd4 {[%emt 0:01:22]} Rb2 {[%emt 0:00:30]} 39. Rb8+ {[%emt 0:01:44]} Ke7 {[%emt 0:00:08]} 40. b7 {[%emt 0:00:00]} Nd7 {[%emt 0:00:00]} 41. Bxd7 {[%emt 0:01:04]} Kxd7 {[%emt 0:00:57]} 42. Rf8 {[%emt 0:00:28]} Kc7 {[%emt 0:00:36]} 43. b8=Q+ {[%emt 0:04:30]} Rxb8 {[%emt 0:00:06]} 44. Rxb8 {[%emt 0:00:14]} Kxb8 {[%emt 0:00:04]} 45. Ke5 {[%emt 0:00:03]} 1-0

[Event "7th Summer Cup 2024"]
[Site "Rhodes"]
[Date "2024.06.28"]
[Round "7.4"]
[White "Hofstadler, Mario"]
[Black "Ladopoulos, Dimitrios"]
[Result "0-1"]
[ECO "D35"]
[WhiteElo "2103"]
[BlackElo "2374"]
[Annotator "RC"]
[PlyCount "66"]
[EventDate "2024.06.21"]
[EventType "swiss"]
[EventCountry "GRE"]
[SourceTitle "playchess.com"]
[Source "ChessBase"]
[SourceQuality "1"]
[TimeControl "40/5400+30:900+30"]

1. d4 {[%emt 0:03:39]} e6 {[%emt 0:02:59]} 2. c4 {[%emt 0:00:14]} d5 {[%emt 0:00:14]} 3. Nf3 {[%emt 0:00:51]} Nf6 {[%emt 0:00:20]} 4. cxd5 {[%emt 0:04:43]} exd5 {[%emt 0:00:44]} 5. Nc3 {[%emt 0:00:19]} c6 {[%emt 0:00:41]} 6. Bg5 {[%emt 0:00:35]} Be7 {[%emt 0:07:48]} 7. e3 {[%emt 0:00:11]} Bf5 {[%emt 0:00:34]} 8. Bd3 {[%emt 0:00:53]} Bxd3 {[%emt 0:00:31]} 9. Qxd3 {[%emt 0:00:07]} Nbd7 {[%emt 0:01:15]} 10. O-O {[%emt 0:00:26]} O-O {[%emt 0:00:05]} 11. Rab1 {[%emt 0:05:10]} a5 {[%emt 0:02:53]} 12. a4 {[%emt 0:07:14]} Re8 {[%emt 0:01:55]} 13. Nd2 {[%emt 0:10:55]} Nf8 {[%emt 0:07:57]} 14. Rfe1 {[%emt 0:19:49]} Ne6 {[%emt 0:09:21]} 15. Bh4 {[%emt 0:01:17]} h6 {[%emt 0:09:37]} 16. Nf3 {[%emt 0:03:28]} Nd7 {[%emt 0:07:01]} 17. Bg3 {[%emt 0:03:02]} Bb4 {[%emt 0:05:03]} 18. Ne5 {[%emt 0:01:48]} Nxe5 {[%emt 0:09:50]} 19. Bxe5 {[%emt 0:00:07]} Bd6 {[%emt 0:00:16]} 20. Bxd6 {[%emt 0:01:19]} Qxd6 {[%emt 0:00:02]} 21. b3 {[%emt 0:05:06]} Rad8 {[%emt 0:02:28]} 22. Ne2 {[%emt 0:02:40]} b6 {[%emt 0:08:35]} 23. Red1 {[%emt 0:09:04]} Re7 {[%emt 0:06:47]} 24. Qc3 {[%emt 0:08:02]} Qb4 {[%emt 0:07:36]} 25. Qb2 {[%emt 0:01:05]} c5 {[%emt 0:01:32]} 26. Nc1 {[%emt 0:01:04]} cxd4 {[%emt 0:01:04]} 27. Na2 {[%emt 0:01:44]} Qd6 {[%emt 0:00:01]} 28. exd4 {[%emt 0:00:06]} Nf4 {[%emt 0:00:39]} 29. Rd2 {[%emt 0:04:32]} Qg6 {[%emt 0:02:26]} 30. f3 {[%emt 0:01:25]} Rde8 {[%emt 0:01:53]} 31. Rf1 {[%emt 0:01:46]} Nh3+ {[%emt 0:01:00]} 32. Kh1 {[%emt 0:00:07]} Re1 {[%emt 0:00:05]} 33. Rd1 {[%emt 0:00:15]} R1e2 {[%emt 0:00:11]} 0-1

[Event "7th Summer Cup 2024"]
[Site "Rhodes"]
[Date "2024.06.28"]
[Round "7.5"]
[White "Papasimakopoulos, Alexandros"]
[Black "Gelle, Istvan"]
[Result "1-0"]
[ECO "A11"]
[WhiteElo "2375"]
[BlackElo "2163"]
[Annotator "RC"]
[PlyCount "91"]
[EventDate "2024.06.21"]
[EventType "swiss"]
[EventCountry "GRE"]
[SourceTitle "playchess.com"]
[Source "ChessBase"]
[SourceQuality "1"]
[TimeControl "40/5400+30:900+30"]

1. c4 {[%emt 0:00:35]} c6 {[%emt 0:00:06]} 2. Qa4 {[%emt 0:00:08]} e5 {[%emt 0:01:34]} 3. Nc3 {[%emt 0:00:06]} Nf6 {[%emt 0:03:40]} 4. Nf3 {[%emt 0:00:06]} d6 {[%emt 0:00:59]} 5. d4 {[%emt 0:00:56]} Nbd7 {[%emt 0:02:26]} 6. Bg5 {[%emt 0:00:16]} Be7 {[%emt 0:06:22]} 7. e3 {[%emt 0:00:06]} O-O {[%emt 0:01:01]} 8. Be2 {[%emt 0:00:34]} h6 {[%emt 0:03:28]} 9. Bh4 {[%emt 0:00:04]} Qc7 {[%emt 0:03:35]} 10. Qc2 {[%emt 0:01:44]} Re8 {[%emt 0:02:12]} 11. h3 {[%emt 0:01:31]} a5 {[%emt 0:03:55]} 12. O-O {[%emt 0:00:16]} Bf8 {[%emt 0:05:05]} 13. Rac1 {[%emt 0:02:58]} exd4 {[%emt 0:11:48]} 14. exd4 {[%emt 0:00:27]} a4 {[%emt 0:00:36]} 15. Bg3 {[%emt 0:00:40]} Qa5 {[%emt 0:01:06]} 16. Bd3 {[%emt 0:01:24]} Nb6 {[%emt 0:04:47]} 17. Nd2 {[%emt 0:05:12]} Be6 {[%emt 0:07:41]} 18. a3 {[%emt 0:04:07]} Rec8 {[%emt 0:08:56]} 19. Ne2 {[%emt 0:02:10]} d5 {[%emt 0:03:23]} 20. c5 {[%emt 0:00:07]} Nbd7 {[%emt 0:00:25]} 21. Nf4 {[%emt 0:00:18]} b6 {[%emt 0:01:02]} 22. cxb6 {[%emt 0:02:37]} Qxb6 {[%emt 0:00:09]} 23. Nxe6 {[%emt 0:01:38]} fxe6 {[%emt 0:00:09]} 24. Nf3 {[%emt 0:00:53]} c5 {[%emt 0:00:59]} 25. Rfe1 {[%emt 0:03:43]} cxd4 {[%emt 0:10:11]} 26. Qxc8 {[%emt 0:00:07]} Rxc8 {[%emt 0:00:16]} 27. Rxc8 {[%emt 0:00:02]} Kf7 {[%emt 0:02:46]} 28. Rec1 {[%emt 0:06:56]} Qxb2 {[%emt 0:08:49]} 29. R1c7 {[%emt 0:00:16]} Be7 {[%emt 0:01:28]} 30. Ra7 {[%emt 0:02:28]} Qxa3 {[%emt 0:02:58]} 31. Bb5 {[%emt 0:00:01]} d3 {[%emt 0:01:22]} 32. Bxd7 {[%emt 0:00:48]} Nxd7 {[%emt 0:00:24]} 33. Rxd7 {[%emt 0:00:05]} d2 {[%emt 0:01:42]} 34. Nxd2 {[%emt 0:00:17]} Kf6 {[%emt 0:01:15]} 35. Nf3 {[%emt 0:00:54]} Bc5 {[%emt 0:00:34]} 36. Rdc7 {[%emt 0:04:43]} Bd6 {[%emt 0:00:37]} 37. Rc3 {[%emt 0:00:25]} Qb4 {[%emt 0:00:32]} 38. Bxd6 {[%emt 0:00:39]} Qxd6 {[%emt 0:00:03]} 39. Nd4 {[%emt 0:03:31]} Qb4 {[%emt 0:00:54]} 40. Nc2 {[%emt 0:00:00]} Qb1+ {[%emt 0:00:00]} 41. Kh2 {[%emt 0:03:02]} Qb2 {[%emt 0:08:04]} 42. R8c6 {[%emt 0:00:42]} Ke7 {[%emt 0:05:48]} 43. Rc7+ {[%emt 0:01:57]} Ke8 {[%emt 0:01:18]} 44. f4 {[%emt 0:02:07]} d4 {[%emt 0:01:54]} 45. Nxd4 {[%emt 0:01:08]} a3 {[%emt 0:00:19]} 46. Rb3 {[%emt 0:00:21]} 1-0

[Event "7th Summer Cup 2024"]
[Site "Rhodes"]
[Date "2024.06.28"]
[Round "7.6"]
[White "Ballas, Athanasios-panagioti"]
[Black "Szalay-Ocsak, Bank"]
[Result "1/2-1/2"]
[ECO "B56"]
[WhiteElo "2151"]
[BlackElo "2279"]
[Annotator "RC"]
[PlyCount "47"]
[EventDate "2024.06.21"]
[EventType "swiss"]
[EventCountry "GRE"]
[SourceTitle "playchess.com"]
[Source "ChessBase"]
[SourceQuality "1"]
[TimeControl "40/5400+30:900+30"]

1. e4 {[%emt 1:31:00]} c5 {[%emt 0:04:42]} 2. Nf3 {[%emt 0:00:00]} d6 {[%emt 0:00:11]} 3. d4 {[%emt 0:00:00]} cxd4 {[%emt 0:00:07]} 4. Nxd4 {[%emt 0:00:00]} Nf6 {[%emt 0:00:09]} 5. Nc3 {[%emt 0:00:00]} Bd7 {[%emt 0:00:24]} 6. Bg5 {[%emt 0:00:00]} e6 {[%emt 0:00:12]} 7. Ndb5 {[%emt 0:00:00]} Bxb5 {[%emt 0:02:00]} 8. Bxb5+ {[%emt 0:00:00]} Nc6 {[%emt 0:00:13]} 9. Qf3 {[%emt 0:00:00]} Be7 {[%emt 0:00:15]} 10. e5 {[%emt 0:00:00]} Nd5 {[%emt 0:04:32]} 11. Bxe7 {[%emt 0:00:00]} Qxe7 {[%emt 0:08:13]} 12. Nxd5 {[%emt 0:00:00]} exd5 {[%emt 0:05:18]} 13. Qxd5 {[%emt 0:00:00]} Qxe5+ {[%emt 0:04:15]} 14. Qxe5+ {[%emt 0:00:00]} dxe5 {[%emt 0:00:07]} 15. O-O-O {[%emt 0:00:00]} Ke7 {[%emt 0:07:16]} 16. Rhe1 {[%emt 0:00:00]} f6 {[%emt 0:03:01]} 17. f4 {[%emt 0:00:00]} Ke6 {[%emt 0:02:14]} 18. Rd3 {[%emt 0:00:00]} Rhd8 {[%emt 0:04:58]} 19. Rde3 {[%emt 0:00:00]} Rac8 {[%emt 0:00:55]} 20. Bxc6 {[%emt 0:00:00]} Rxc6 {[%emt 0:00:05]} 21. fxe5 {[%emt 0:00:00]} f5 {[%emt 0:00:06]} 22. c3 {[%emt 0:00:00]} g6 {[%emt 0:10:51]} 23. Kc2 {[%emt 0:00:00]} Rd5 {[%emt 0:01:01]} 24. a4 {[%emt 0:00:00]} 1/2-1/2

[Event "7th Summer Cup 2024"]
[Site "Rhodes"]
[Date "2024.06.28"]
[Round "7.7"]
[White "Mickiewicz, Piotr"]
[Black "Witczak, Borys"]
[Result "0-1"]
[ECO "B15"]
[WhiteElo "2257"]
[BlackElo "1937"]
[Annotator "RC"]
[PlyCount "80"]
[EventDate "2024.06.21"]
[EventType "swiss"]
[EventCountry "GRE"]
[SourceTitle "playchess.com"]
[Source "ChessBase"]
[SourceQuality "1"]
[TimeControl "40/5400+30:900+30"]

1. e4 {[%emt 0:00:06]} c6 {[%emt 0:00:07]} 2. d4 {[%emt 0:00:11]} d5 {[%emt 0:00:15]} 3. Nc3 {[%emt 0:00:36]} dxe4 {[%emt 0:00:09]} 4. Nxe4 {[%emt 0:00:06]} Nf6 {[%emt 0:00:28]} 5. Nxf6+ {[%emt 0:00:29]} exf6 {[%emt 0:00:08]} 6. c3 {[%emt 0:00:11]} Bd6 {[%emt 0:00:11]} 7. Bd3 {[%emt 0:00:08]} O-O {[%emt 0:00:20]} 8. Qc2 {[%emt 0:00:12]} Re8+ {[%emt 0:00:17]} 9. Ne2 {[%emt 0:00:05]} h5 {[%emt 0:00:09]} 10. Be3 {[%emt 0:00:58]} Nd7 {[%emt 0:00:21]} 11. O-O {[%emt 0:01:08]} h4 {[%emt 0:02:58]} 12. Bf4 {[%emt 0:07:02]} Nf8 {[%emt 0:11:34]} 13. Bxd6 {[%emt 0:26:23]} Qxd6 {[%emt 0:00:25]} 14. h3 {[%emt 0:02:19]} g6 {[%emt 0:35:55]} 15. Rad1 {[%emt 0:06:37]} Bd7 {[%emt 0:03:27]} 16. c4 {[%emt 0:07:48]} Ne6 {[%emt 0:01:56]} 17. c5 {[%emt 0:01:03]} Qd5 {[%emt 0:09:28]} 18. Bc4 {[%emt 0:05:56]} Qh5 {[%emt 0:02:26]} 19. b4 {[%emt 0:06:03]} Ng5 {[%emt 0:04:57]} 20. Nf4 {[%emt 0:00:23]} Qh8 {[%emt 0:05:18]} 21. Qxg6+ {[%emt 0:16:43]} Kf8 {[%emt 0:00:09]} 22. Qh5 {[%emt 0:00:22]} Qg7 {[%emt 0:00:24]} 23. f3 {[%emt 0:01:28]} Nxh3+ {[%emt 0:05:55]} 24. Nxh3 {[%emt 0:00:02]} Bxh3 {[%emt 0:00:01]} 25. Rf2 {[%emt 0:01:12]} Be6 {[%emt 0:00:53]} 26. Bxe6 {[%emt 0:03:28]} Rxe6 {[%emt 0:00:55]} 27. Qxh4 {[%emt 0:00:04]} f5 {[%emt 0:01:44]} 28. Qf4 {[%emt 0:03:32]} Rae8 {[%emt 0:08:45]} 29. a4 {[%emt 0:08:33]} Qh7 {[%emt 0:00:59]} 30. Rfd2 {[%emt 0:01:00]} Rh6 {[%emt 0:02:00]} 31. d5 {[%emt 0:00:39]} Rh4 {[%emt 0:00:31]} 32. Qd6+ {[%emt 0:00:16]} Kg8 {[%emt 0:00:35]} 33. Qg3+ {[%emt 0:00:48]} Kh8 {[%emt 0:01:27]} 34. Kf2 {[%emt 0:00:56]} f6 {[%emt 0:00:49]} 35. Rd4 {[%emt 0:00:28]} f4 {[%emt 0:00:30]} 36. Qg4 {[%emt 0:00:37]} Rxg4 {[%emt 0:00:20]} 37. fxg4 {[%emt 0:00:02]} Qh4+ {[%emt 0:00:32]} 38. Kf1 {[%emt 0:00:01]} cxd5 {[%emt 0:01:26]} 39. Rxd5 {[%emt 0:00:01]} Qxg4 {[%emt 0:00:15]} 40. b5 {[%emt 0:00:00]} f3 {[%emt 0:00:00]} 0-1

[Event "7th Summer Cup 2024"]
[Site "Rhodes"]
[Date "2024.06.28"]
[Round "7.8"]
[White "Mohammed Saeed Alshamsi"]
[Black "Sibashvili, Giorgi"]
[Result "0-1"]
[ECO "B48"]
[WhiteElo "1474"]
[BlackElo "2423"]
[Annotator "RC"]
[PlyCount "48"]
[EventDate "2024.06.21"]
[EventType "swiss"]
[EventCountry "GRE"]
[SourceTitle "playchess.com"]
[Source "ChessBase"]
[SourceQuality "1"]
[TimeControl "40/5400+30:900+30"]

1. e4 {[%emt 1:31:00]} c5 {[%emt 0:02:47]} 2. Nf3 {[%emt 0:00:00]} e6 {[%emt 0:00:19]} 3. Nc3 {[%emt 0:00:00]} a6 {[%emt 0:00:20]} 4. d4 {[%emt 0:00:00]} cxd4 {[%emt 0:00:06]} 5. Nxd4 {[%emt 0:00:00]} b5 {[%emt 0:00:09]} 6. a3 {[%emt 0:00:00]} Bb7 {[%emt 0:00:19]} 7. Be3 {[%emt 0:00:00]} Qc7 {[%emt 0:03:18]} 8. Bd3 {[%emt 0:00:00]} Nf6 {[%emt 0:00:39]} 9. O-O {[%emt 0:00:00]} Nc6 {[%emt 0:02:30]} 10. f4 {[%emt 0:04:30]} Bc5 {[%emt 1:25:03]} 11. Nce2 {[%emt 0:00:00]} Nxd4 {[%emt 0:00:00]} 12. Nxd4 {[%emt 0:00:00]} Bxe4 {[%emt 0:01:00]} 13. Bxe4 {[%emt 0:01:30]} Nxe4 {[%emt 0:00:00]} 14. Qd3 {[%emt 0:00:00]} d5 {[%emt 0:01:00]} 15. c3 {[%emt 0:00:00]} O-O {[%emt 0:00:00]} 16. Rf3 {[%emt 0:01:30]} Qd7 {[%emt 0:00:00]} 17. Rh3 {[%emt 0:00:00]} Rab8 {[%emt 0:00:00]} 18. Nf3 {[%emt 0:00:00]} Bxe3+ {[%emt 0:00:00]} 19. Qxe3 {[%emt 0:00:00]} f5 {[%emt 0:00:00]} 20. Ne5 {[%emt 0:00:00]} Qc7 {[%emt 0:00:00]} 21. b4 {[%emt 0:00:00]} Rfc8 {[%emt 0:00:00]} 22. Rc1 {[%emt 0:00:00]} a5 {[%emt 0:00:00]} 23. Qd4 {[%emt 0:00:00]} axb4 {[%emt 0:00:00]} 24. axb4 {[%emt 0:00:00]} Ra8 {[%emt 0:00:00]} 0-1